[Event "IX Iberoamericano Championship 2023"]
[Site "Panama City"]
[Date "2023.12.01"]
[Round "7.6"]
[White "Cuenca Jimenez, Jose Fernando"]
[Black "Noboa Silva, Kevin"]
[Result "1-0"]
[ECO "D00"]
[WhiteElo "2505"]
[BlackElo "2318"]
[Annotator "TA"]
[PlyCount "77"]
[EventDate "2023.11.27"]
[EventType "swiss"]
[EventCountry "PAN"]
[SourceTitle "playchess.com"]
[Source "ChessBase"]
[SourceQuality "1"]
[TimeControl "5400+30"]

{[%evp 9,77,21,18,21,28,34,36,26,26,14,8,2,108,73,85,74,83,81,73,72,82,90,92,88,110,90,117,121,152,138,243,235,225,209,239,175,173,176,178,125,230,221,355,234,294,305,572,570,866,915,937,913,900,876,1089,1069,1528,1166,4208,3555,12802,1910,5339,1781,29980,29980,29978,29978,29994,29978]} 1. d4 {[%emt 0:00:03]} d5 {[%emt 0:01:20]} 2. Bf4 {[%emt 0:00:48]} Nf6 {[%emt 0:00:41]} 3. e3 {[%emt 0:00:22]} c5 {[%emt 0:00:41]} 4. dxc5 {[%emt 0:00:20]} Nc6 {[%emt 0:03:44]} 5. Bb5 {[%emt 0:00:11]} e6 {[%emt 0:05:08]} 6. b4 {[%emt 0:00:18] D00: 1 d4 d5: Unusual lines.} Be7 {[%emt 0:00:13]} 7. Nd2 {[%emt 0:13:56]} O-O {[%emt 0:01:13]} 8. a3 {[%emt 0:00:17] White is slightly better.} a5 {[%emt 0:07:14]} 9. Rb1 {[%emt 0:06:19]} e5 {[%emt 0:10:17]} 10. Bg3 {[%emt 0:05:57] [#]} e4 $146 {[%emt 0:13:43]} (10... Bg4 $1 $11 {keeps the balance.} 11. f3 axb4) ({Predecessor:} 10... axb4 11. axb4 d4 12. e4 Bg4 13. Ngf3 Nh5 14. O-O Nxg3 15. hxg3 f5 16. exf5 Kh8 {1-0 Winants,L (2543)-Kleijn,C (2418) Roosendaal LBV op-A 2012 (4)}) 11. c3 {[%emt 0:09:03]} Bg4 {[%emt 0:03:01]} 12. Be2 {[%emt 0:07:34]} Be6 {[%emt 0:02:09]} 13. Nh3 {[%emt 0:07:09]} (13. b5 Nb8 $15) 13... Bxh3 {[%emt 0:00:59]} 14. gxh3 {[%emt 0:00:38]} axb4 {[%emt 0:01:56]} 15. axb4 {[%emt 0:00:34]} Qd7 {[%emt 0:01:31]} 16. h4 {[%emt 0:04:00]} Ra3 {[%emt 0:03:41]} 17. Nb3 {[%emt 0:02:42]} Rfa8 {[%emt 0:03:16] [#]} 18. O-O $1 {[%emt 0:05:46]} Bd8 {[%emt 0:04:28]} 19. Nd4 {[%emt 0:11:40]} Ne7 {[%emt 0:08:53]} (19... Ra2 $16) 20. Nb5 $18 {[%emt 0:05:35]} Ra2 {[%emt 0:06:01]} 21. c4 {[%emt 0:00:05]} R2a4 {[%emt 0:15:29]} 22. Nd6 {[%emt 0:11:37] cxd5 would be deadly.} Bc7 {[%emt 0:00:36]} 23. cxd5 {[%emt 0:04:45] Strongly threatening Bb5.} (23. Nxb7 Bxg3 24. hxg3 Qxb7 $17) 23... Bxd6 {[%emt 0:00:07] [#]} 24. cxd6 {[%emt 0:00:13]} (24. Bxd6 $6 Nexd5 25. Qd4 b6 $16) (24. c6 $1 $18 {[%cal Rc6d7]} Qc8 25. Bxd6 Nfxd5 26. Bxe7 Nxe7 27. b5) 24... Nexd5 {[%emt 0:00:06]} (24... Nc8 $16 {was called for.}) 25. Qd4 {[%emt 0:00:20]} Ra3 {[%emt 0:02:23]} (25... Rc8 $142 26. Rfc1 Rxc1+ 27. Rxc1 Rxb4) 26. Bc4 {[%emt 0:00:47]} Nc3 {[%emt 0:00:24]} 27. Rbc1 {[%emt 0:00:12]} Nfd5 {[%emt 0:02:44]} (27... Rc8 {is a better defense.} 28. Rxc3 Rxc3 29. Qxc3 b5 30. Bxb5 Rxc3 31. Bxd7 Nxd7) 28. Rfe1 {[%emt 0:01:08]} (28. Bxd5 Ne2+ 29. Kg2 Nxd4 30. exd4 Rf8 $15) ({Inferior is} 28. f3 b5 29. Be1 (29. Bxd5 $2 Ne2+ 30. Kg2 Nxd4 $17) (29. fxe4 $2 {loses.} bxc4 30. Rf2 Nxe3 $19) 29... bxc4 30. Bxc3 Nxc3 31. Rxc3 Rxc3 32. Qxc3 Rc8 33. fxe4 Qxd6 $15) 28... Rc8 {[%emt 0:01:42]} 29. Bxd5 {[%emt 0:01:06]} Ne2+ {[%emt 0:00:04]} 30. Rxe2 {[%emt 0:00:01] Threatens to win with Rxc8+.} Rxc1+ {[%emt 0:00:05]} 31. Kg2 {[%emt 0:00:02]} Raa1 {[%emt 0:00:55]} 32. Qxe4 {[%emt 0:00:05]} h5 {[%emt 0:00:38]} 33. Ra2 {[%emt 0:01:36] Intending Rxa1 and mate.} Rxa2 {[%emt 0:00:59]} 34. Bxa2 {[%emt 0:00:02]} Qb5 {[%emt 0:00:31]} 35. Qd5 {[%emt 0:00:35]} Qd7 {[%emt 0:00:35]} 36. Bc4 {[%emt 0:00:39] aiming for Bb5.} g6 {[%emt 0:00:32]} 37. Bb5 {[%emt 0:00:25] White mates.} Qd8 {[%emt 0:00:28]} 38. d7 {[%emt 0:00:16]} Ra1 {[%emt 0:00:29]} 39. Qg5 {[%emt 0:00:11] An entertaining game by Cuenca Jimenez.   Weighted Error Value: White=0.15 (very precise) /Black=0.64} 1-0

[Event "IX Iberoamericano Championship 2023"]
[Site "Panama City"]
[Date "2023.12.01"]
[Round "7.7"]
[White "Palma Villanueva, Miguel Ta"]
[Black "Miranda Mesa, Elier"]
[Result "0-1"]
[ECO "B30"]
[WhiteElo "2286"]
[BlackElo "2490"]
[Annotator "TA"]
[PlyCount "80"]
[EventDate "2023.11.27"]
[EventType "swiss"]
[EventCountry "PAN"]
[SourceTitle "playchess.com"]
[Source "ChessBase"]
[SourceQuality "1"]
[TimeControl "5400+30"]

{[%evp 11,80,31,28,31,37,34,34,8,-10,-8,-6,-79,-39,-187,-189,-179,-174,-189,-194,-145,-119,-187,-191,-235,-248,-437,-320,-538,-538,-530,-530,-503,-345,-347,-352,-352,-335,-711,-710,-704,-699,-741,-741,-756,-730,-754,-754,-727,-730,-736,-725,-740,-586,-914,-906,-867,-820,-1096,-1079,-1020,-943,-1217,-1229,-1171,-1161,-1392,-1383,-2390,-2314,-29991,-29992]} 1. e4 {[%emt 0:01:45]} c5 {[%emt 0:00:05]} 2. Nf3 {[%emt 0:00:04]} Nc6 {[%emt 0:00:05]} 3. Bb5 {[%emt 0:00:04]} Nf6 {[%emt 0:00:14]} 4. Nc3 {[%emt 0:00:13]} Qc7 {[%emt 0:00:15]} 5. O-O {[%emt 0:00:19]} Nd4 {[%emt 0:00:30]} 6. Re1 {[%emt 0:03:09]} a6 {[%emt 0:00:15]} 7. Bc4 {[%emt 0:06:18] B30: Sicilian: 2...Nc6 3 Bb5, lines without ...g6.} e6 {[%emt 0:09:28]} 8. e5 {[%emt 0:05:04]} Ng8 {[%emt 0:01:01][%cal Bf6g8,Bg8e7,Be7g6,Bg6e5,Be5g6,Bg6f4][%mdl 32]} 9. a4 {[%emt 0:06:09] White is slightly better.} Ne7 {[%emt 0:06:01]} 10. d3 {[%emt 0:05:45]} Ng6 $1 {[%emt 0:04:16] [#]} 11. Ng5 $146 {[%emt 0:12:37]} (11. Be3 $11 {remains equal.}) ({Predecessor:} 11. Ba2 Be7 12. Re4 b6 13. Nxd4 cxd4 14. Rxd4 Bb7 15. Qh5 O-O 16. Rc4 Qb8 17. Bf4 b5 18. Rd4 Bc5 19. Be3 Bxd4 20. Bxd4 Bxg2 21. Ne2 Qb7 22. Qg5 Bh3 {0-1 Vingerhoets,L (1968)-Shirazi,K (2343) Avoine op 34th 2019 (6)}) 11... Nxe5 {[%emt 0:13:39]} (11... Be7 {simplifies} 12. Nf3 O-O 13. Bb3 h6) 12. Nd5 {[%emt 0:17:46] Dodges Be7} exd5 $19 {[%emt 0:07:37]} 13. Nxf7 {[%emt 0:07:57]} Kxf7 {[%emt 0:04:32]} 14. Bxd5+ {[%emt 0:01:14]} Ne6 {[%emt 0:05:59]} ({Not} 14... Kg6 15. c3 Ne6 16. f4 $11) 15. f4 {[%emt 0:00:39]} Ng6 {[%emt 0:10:42][%cal Og6e7]} 16. Qh5 {[%emt 0:05:27]} (16. f5 $17) 16... Qd8 {[%emt 0:07:16] Strongly threatening ...Qh4.} 17. Bd2 {[%emt 0:08:10]} Qh4 {[%emt 0:07:05]} 18. Qf5+ {[%emt 0:01:40]} (18. Qf3 {was the only chance.} Qf6 19. f5 {[%mdl 64] Pin}) 18... Qf6 {[%emt 0:01:51]} 19. Qh5 {[%emt 0:00:15]} (19. Qe4 {only move.}) 19... Kg8 {[%emt 0:01:02]} ({Less strong is} 19... Qxb2 20. f5 Ke7 21. fxe6 (21. fxg6 Qd4+ 22. Kh1 Kd6 $11) 21... dxe6 22. Be4 $14) 20. Bc3 {[%emt 0:14:30]} Ngxf4 {[%emt 0:03:26]} 21. Qf3 {[%emt 0:00:43]} Qg5 {[%emt 0:00:35]} 22. Re5 {[%emt 0:01:02] [#]} Qxg2+ {[%emt 0:04:51]} 23. Qxg2 {[%emt 0:00:06]} Nxg2 {[%emt 0:00:03]} 24. Rf1 {[%emt 0:00:52] Prevents Ngf4} (24. Kxg2 Kf7 25. Rg1) 24... Nh4 {[%emt 0:03:30]} 25. Rg5 {[%emt 0:00:16]} Ng6 {[%emt 0:04:26]} 26. Rgf5 {[%emt 0:00:30]} Be7 {[%emt 0:01:40]} 27. a5 {[%emt 0:00:16] [#]} Bf6 $1 {[%emt 0:00:37]} 28. Bxf6 {[%emt 0:00:05]} (28. Rxf6 gxf6) 28... gxf6 {[%emt 0:00:03]} 29. Rxf6 {[%emt 0:00:05]} Kg7 {[%emt 0:00:22]} 30. Rf7+ {[%emt 0:00:41]} Kh6 {[%emt 0:00:08]} 31. h4 {[%emt 0:00:16]} Nef4 {[%emt 0:01:21]} 32. h5 {[%emt 0:01:23]} Nxd5 {[%emt 0:01:02]} 33. hxg6 {[%emt 0:00:06]} d6 {[%emt 0:00:51]} 34. R1f2 {[%emt 0:01:26]} Kxg6 {[%emt 0:00:33]} 35. c4 {[%emt 0:00:31]} Be6 {[%emt 0:00:21]} 36. R7f3 {[%emt 0:00:05]} Bg4 {[%emt 0:00:37]} 37. Rf7 {[%emt 0:00:22]} Ne3 {[%emt 0:00:45] ...Nf5 would be deadly.} 38. R2f6+ {[%emt 0:00:26]} Kg5 {[%emt 0:00:12] White must now prevent ...Bh5.} 39. Rxd6 {[%emt 0:00:35]} Raf8 {[%emt 0:00:28]} 40. Rg7+ {[%emt 0:00:31]} Kh4 {[%emt 0:00:09] Weighted Error Value: White=0.57/Black=0.21 (precise)} 0-1

[Event "IX Iberoamericano Championship 2023"]
[Site "Panama City"]
[Date "2023.12.01"]
[Round "7.8"]
[White "De La Riva Aguado, Oscar"]
[Black "Ordaz Valdes, Lisandra Teresa"]
[Result "1/2-1/2"]
[ECO "C45"]
[WhiteElo "2437"]
[BlackElo "2306"]
[Annotator "TA"]
[PlyCount "55"]
[EventDate "2023.11.27"]
[EventType "swiss"]
[EventCountry "PAN"]
[SourceTitle "playchess.com"]
[Source "ChessBase"]
[SourceQuality "1"]
[TimeControl "5400+30"]

{[%evp 11,55,40,41,30,43,25,31,27,40,16,59,15,39,8,5,0,14,18,19,14,23,16,16,16,16,14,28,-26,-52,-62,-51,-60,-57,-54,-56,-46,-50,-70,0,0,-12,-65,-58,-93,-89,-171]} 1. e4 {[%emt 0:00:08]} e5 {[%emt 0:00:06]} 2. Nf3 {[%emt 0:00:26]} Nc6 {[%emt 0:00:06]} 3. d4 {[%emt 0:00:50]} exd4 {[%emt 0:00:06]} 4. Nxd4 {[%emt 0:00:07]} Bc5 {[%emt 0:00:05]} 5. Nb3 {[%emt 0:01:37]} Bb4+ {[%emt 0:00:11]} 6. c3 {[%emt 0:00:11]} Be7 {[%emt 0:00:05]} 7. f4 {[%emt 0:02:09] C45: Scotch Game.} d6 {[%emt 0:00:12]} 8. Bd3 {[%emt 0:00:50]} Nh6 {[%emt 0:00:06]} 9. O-O {[%emt 0:04:07] White is slightly better.} O-O {[%emt 0:00:14]} 10. N1d2 {[%emt 0:01:49]} f5 {[%emt 0:00:16]} 11. Qc2 {[%emt 0:01:39]} Kh8 {[%emt 0:16:05] [#]} 12. Kh1 $146 {[%emt 0:09:06]} ({Predecessor:} 12. Nf3 fxe4 13. Bxe4 Bf5 14. Nbd4 Nxd4 15. Nxd4 Bxe4 16. Qxe4 d5 17. Qd3 Bc5 18. f5 Bxd4+ 19. cxd4 {½-½ Nugumanov,B (2287)-Romanishin,O (2502) Baku op 2014 (8)}) 12... Qe8 {[%emt 0:02:42]} 13. Nf3 {[%emt 0:01:43]} (13. Nc4 {seems wilder.} Qh5 14. Ne3 Ng4 15. g3) 13... Qh5 {[%emt 0:02:06]} 14. Bd2 {[%emt 0:07:06]} fxe4 {[%emt 0:11:58]} 15. Bxe4 {[%emt 0:00:17]} Nf5 {[%emt 0:00:38]} 16. Kg1 {[%emt 0:05:15]} Bd7 {[%emt 0:08:53]} 17. Rae1 {[%emt 0:01:40]} Rae8 {[%emt 0:00:28]} 18. Qd3 {[%emt 0:04:41]} a6 {[%emt 0:07:55]} 19. Nc5 {[%emt 0:11:32] [#]} ({White should play} 19. Qd5) 19... Nb4 $1 $11 {[%emt 0:05:00]} 20. cxb4 {[%emt 0:04:16]} (20. Qb1 dxc5) 20... Bb5 {[%emt 0:00:09]} 21. Qc2 {[%emt 0:03:24]} dxc5 {[%emt 0:21:47]} ({But not} 21... Bxf1 22. Bxf5 Qxf5 23. Qxf5 Rxf5 24. Ne6 Bxg2 25. Kxg2 $14) 22. Rf2 {[%emt 0:03:06]} cxb4 {[%emt 0:08:32]} 23. Bxb7 {[%emt 0:01:11]} Bd6 {[%emt 0:03:11] Hoping for ...Rxe1+.} (23... c6 {with more complications.} 24. Ne5 Bh4 25. g3 Nxg3 26. Bxb4 Nf5) 24. Rxe8 {[%emt 0:02:52]} Qxe8 {[%emt 0:01:12]} (24... Rxe8 $15 25. Bc6 Bxc6 26. Qxc6 Ne7) 25. Be4 $1 {[%emt 0:02:10]} Qe6 {[%emt 0:02:20]} 26. g4 {[%emt 0:10:26]} (26. g3 $11) 26... Ne7 $15 {[%emt 0:03:55]} 27. h3 {[%emt 0:04:41]} Qxa2 {[%emt 0:03:06]} 28. Ne5 {[%emt 0:11:17] Weighted Error Value: White=0.16 (very precise) /Black=0.08 (flawless)} (28. f5 $17 {was worth a try.}) 1/2-1/2

[Event "IX Iberoamericano Championship 2023"]
[Site "Panama City"]
[Date "2023.12.01"]
[Round "7.9"]
[White "Hernandez Montes, Jhon Sebastian"]
[Black "Sanchez Alvarez, Roberto Carlos"]
[Result "1-0"]
[ECO "B22"]
[WhiteElo "2280"]
[BlackElo "2437"]
[Annotator "TA"]
[PlyCount "87"]
[EventDate "2023.11.27"]
[EventType "swiss"]
[EventCountry "PAN"]
[SourceTitle "playchess.com"]
[Source "ChessBase"]
[SourceQuality "1"]
[TimeControl "5400+30"]

{[%evp 23,87,0,0,-14,-9,-31,-19,-22,0,0,0,-20,-12,-21,0,0,-4,-7,0,-27,-32,-20,-17,-71,-70,-46,-39,-49,-43,-99,-114,-116,-112,-112,-93,-158,-68,-68,-68,-136,-137,-134,-133,-138,-2,-8,0,0,37,14,34,18,216,192,244,256,651,639,1225,1227,29984,29985,29985,29986,29986,29987]} 1. e4 {[%emt 0:00:30]} c5 {[%emt 0:11:19]} 2. c3 {[%emt 0:00:00]} d5 {[%emt 0:02:56]} 3. exd5 {[%emt 0:00:04]} Qxd5 {[%emt 0:00:03]} 4. d4 {[%emt 0:00:02]} Nf6 {[%emt 0:00:20]} 5. Nf3 {[%emt 0:00:13]} Nc6 {[%emt 0:01:04]} 6. Be2 {[%emt 0:03:13]} cxd4 {[%emt 0:01:28]} 7. cxd4 {[%emt 0:00:33]} e6 {[%emt 0:00:09]} 8. Nc3 {[%emt 0:01:22]} Qd6 {[%emt 0:00:17]} 9. O-O {[%emt 0:01:55]} Be7 {[%emt 0:00:12]} 10. Nb5 {[%emt 0:03:39]} Qd8 {[%emt 0:00:35]} 11. Bf4 {[%emt 0:00:45]} Nd5 {[%emt 0:01:32]} 12. Bg3 {[%emt 0:04:44]} O-O {[%emt 0:01:55]} 13. Qd2 {[%emt 0:07:39] [#] Recently 13.Rc1 got a lot of attention. B22: Sicilian: 2 c3.} b6 $146 {[%emt 0:13:34]} ({Predecessor:} 13... a6 14. Nc3 b6 15. Rfe1 Bb7 16. Bd3 Ncb4 17. Be2 Nf6 18. Ne5 Nbd5 19. Bf3 Rc8 20. Rac1 Ba8 {½-½ Dudeney,K (1874)-Halliday,J (1884) BCCA WS Silver email 2013}) 14. Rac1 {[%emt 0:25:40]} Bb7 {[%emt 0:00:45]} 15. Rfd1 {[%emt 0:01:13] The position is equal.} a6 {[%emt 0:21:07]} 16. Nc3 {[%emt 0:01:45]} Bb4 {[%emt 0:05:09]} 17. Qd3 {[%emt 0:07:19]} Rc8 {[%emt 0:01:40]} 18. h3 {[%emt 0:09:42]} h6 {[%emt 0:05:12]} 19. Ne4 {[%emt 0:03:33]} Be7 {[%emt 0:00:34]} 20. Qb1 {[%emt 0:00:37]} Nf6 {[%emt 0:06:15]} 21. Nc3 {[%emt 0:03:10]} b5 {[%emt 0:01:06]} 22. a3 {[%emt 0:03:47]} Na5 {[%emt 0:01:19]} 23. Be5 {[%emt 0:03:50]} (23. Nd2 $11 {remains equal.}) 23... Nb3 $17 {[%emt 0:06:55]} 24. Rc2 {[%emt 0:00:15]} Nd5 {[%emt 0:00:18][%cal Bf6d5,Bd5f4,Bf4e2][%mdl 32]} (24... Qb6 {simplifies} 25. Ne1 Nd7 26. Bf3 Nxe5 27. dxe5 Rfd8) 25. Ne4 {[%emt 0:02:28]} Qb6 {[%emt 0:01:00]} 26. Rd3 {[%emt 0:04:17] [#]} (26. Rxc8 $1 $15 Rxc8 27. Bd3) 26... Nf4 $1 {[%emt 0:02:05][%mdl 64] ...Nxe2+ is the strong threat. Discovered Attack} 27. Re3 {[%emt 0:01:04]} Nxe2+ {[%emt 0:02:36]} 28. Rexe2 {[%emt 0:00:01]} f6 {[%emt 0:00:32]} 29. Bg3 {[%emt 0:02:59]} (29. Nxf6+ $142 Bxf6 30. Bxf6 Rxc2 31. Qxc2) 29... Nxd4 {[%emt 0:01:47]} ({Black should play} 29... Rfd8 $17 30. Nc5 Nxc5 31. dxc5 Bxc5) 30. Nxd4 $15 {[%emt 0:00:07]} Qxd4 {[%emt 0:00:11]} 31. Nc3 {[%emt 0:00:21]} ({Better is} 31. Nd6 $15 Bxd6 32. Rcd2) 31... Qb6 {[%emt 0:03:21]} 32. Rcd2 {[%emt 0:01:17]} Rfd8 {[%emt 0:02:43]} 33. Qg6 {[%emt 0:00:25]} e5 {[%emt 0:07:01] Prevents Bf4.} (33... Rxd2 $17 34. Rxd2 Rd8) 34. Bxe5 $11 {[%emt 0:01:03][%cal Oe5d4,Bg3e5,Be5f4,Bf4d2,Bd2h6][%mdl 32]} Bc5 {[%emt 0:00:00] Prevents Bd4. This pair of bishops is nice.} 35. Bf4 {[%emt 0:00:43]} Qc6 {[%emt 0:00:00]} 36. Ne4 {[%emt 0:02:05] [#] Hoping for Rc2.} Rxd2 {[%emt 0:00:22]} 37. Bxd2 {[%emt 0:00:12]} Bd4 $2 {[%emt 0:01:00] Black cannot hold the game after this.} (37... Bf8 $1 $11) 38. Bxh6 $40 {[%emt 0:01:04][%csl Gh6][%cal Rg6g7][%mdl 128] White is out for blood.} f5 {[%emt 0:00:02]} (38... Qd7 {might work better.}) 39. Nd6 {[%emt 0:00:00]} (39. Qxf5 $2 {too greedy.} gxh6 40. Qg4+ Kh7 $19) 39... Rd8 $2 {[%emt 0:01:04]} (39... Rf8 40. Bf4 Qd5) 40. Qf7+ {[%emt 0:00:21]} Kh8 {[%emt 0:00:01][%csl Gb7][%cal Rc6g2]} 41. Nxb7 {[%emt 0:00:21]} Bxf2+ {[%emt 0:00:59]} 42. Kxf2 {[%emt 0:00:42][%csl Gh6][%cal Rf7g7] White mates.} Qxh6 {[%emt 0:00:17]} 43. Nxd8 {[%emt 0:00:24]} Qf4+ {[%emt 0:00:05]} 44. Kg1 {[%emt 0:00:05] Weighted Error Value: White=0.17 (very precise) /Black=0.63} 1-0

[Event "IX Iberoamericano Championship 2023"]
[Site "Panama City"]
[Date "2023.12.01"]
[Round "7.10"]
[White "Cabezas Solano, David Alejandro"]
[Black "Cori, Jorge"]
[Result "0-1"]
[ECO "D76"]
[WhiteElo "2171"]
[BlackElo "2626"]
[Annotator "TA"]
[PlyCount "71"]
[EventDate "2023.11.27"]
[EventType "swiss"]
[EventCountry "PAN"]
[SourceTitle "playchess.com"]
[Source "ChessBase"]
[SourceQuality "1"]
[TimeControl "5400+30"]

{[%evp 18,71,50,27,60,56,48,58,63,51,58,0,0,0,24,14,24,14,28,8,56,56,37,56,118,118,122,105,135,138,146,131,141,120,126,125,125,125,141,141,139,136,136,136,136,43,58,22,91,88,77,-24,-19,-396,-156,-129]} 1. d4 {[%emt 0:00:05]} Nf6 {[%emt 0:05:35]} 2. c4 {[%emt 0:00:06]} g6 {[%emt 0:01:33]} 3. Nf3 {[%emt 0:00:12]} Bg7 {[%emt 0:00:06]} 4. g3 {[%emt 0:00:05]} O-O {[%emt 0:00:51]} 5. Bg2 {[%emt 0:00:11]} d5 {[%emt 0:02:40]} 6. cxd5 {[%emt 0:01:38]} Nxd5 {[%emt 0:00:04]} 7. O-O {[%emt 0:00:12]} Nb6 {[%emt 0:00:03]} 8. Nc3 {[%emt 0:00:15]} Nc6 {[%emt 0:00:03]} 9. e3 {[%emt 0:00:03][%cal Be2e3,Be3e4][%mdl 32] 9.e3 is better than 9.d5.} a5 {[%emt 0:00:02]} 10. d5 {[%emt 0:04:52]} Nb4 {[%emt 0:11:14][%cal Rb4d5] D76: Fianchetto Grünfeld: Main Line with 7...Nb6.} 11. e4 {[%emt 0:00:22]} c6 {[%emt 0:00:37][%cal Rc6d5]} 12. a3 {[%emt 0:04:56]} Na6 {[%emt 0:00:05] White is slightly better.} 13. Be3 {[%emt 0:10:16]} Nc4 {[%emt 0:01:45]} 14. Bd4 {[%emt 0:04:29]} (14. Qe2 $14 Nxe3 15. Qxe3) 14... e5 $1 $11 {[%emt 0:00:06][%cal Oc4b2] Strongly threatening ...Nxb2!} 15. dxe6 {[%emt 0:00:43][%cal Oe6e7] And now e7! would win.} Bxe6 {[%emt 0:00:34]} 16. Bxg7 {[%emt 0:09:41]} Qxd1 {[%emt 0:03:16]} 17. Rfxd1 {[%emt 0:00:13]} Kxg7 {[%emt 0:00:03]} 18. Nd4 $36 {[%emt 0:01:53][%mdl 2048] [#] White has the initiative.} Nb6 $146 {[%emt 0:07:27]} (18... Rad8 $11) ({Predecessor:} 18... Bg4 19. f3 Bc8 20. Na4 b5 21. b3 Ne3 22. Nb6 Nxd1 23. Nxa8 Nc3 24. Nb6 Bb7 {½-½ Donaldson Akhmilovskaya,E (2290)-Chiburdanidze,M (2435) World-ch (Women) 1986 (2)}) 19. Nxe6+ $14 {[%emt 0:08:38]} fxe6 {[%emt 0:00:05]} 20. e5 {[%emt 0:04:32]} Nd5 {[%emt 0:25:52]} (20... Nc5 $14) 21. Ne4 $16 {[%emt 0:01:38]} Rf7 {[%emt 0:08:53]} 22. h4 {[%emt 0:08:47]} h6 {[%emt 0:01:13]} 23. Rac1 {[%emt 0:05:24]} Raf8 {[%emt 0:03:38]} 24. Bh3 {[%emt 0:04:02]} Re7 {[%emt 0:02:28]} 25. Rd2 {[%emt 0:02:28]} Nb8 {[%emt 0:03:47]} 26. f4 {[%emt 0:04:06]} Nd7 {[%emt 0:00:28]} 27. Re2 {[%emt 0:06:28]} Rd8 {[%emt 0:06:52]} 28. Nd6 {[%emt 0:03:51]} Nf8 {[%emt 0:05:57]} 29. Rc5 {[%emt 0:02:29]} Ra8 {[%emt 0:00:02]} 30. Rc4 {[%emt 0:02:07]} Kg8 {[%emt 0:00:27]} 31. g4 {[%emt 0:01:29]} (31. Kf2 $16) 31... g5 {[%emt 0:02:55]} 32. f5 {[%emt 0:04:14]} Rd8 {[%emt 0:02:15] [#]} (32... Nf4 $11 {remains equal.} 33. Rh2 Nd3) 33. hxg5 $1 {[%emt 0:03:06]} hxg5 {[%emt 0:00:05] [#]} 34. Kf2 {[%emt 0:01:04]} (34. Bf1 $1 $16) 34... Nf4 $11 {[%emt 0:02:31] Excellent horsemanship.} 35. Rce4 {[%emt 0:03:25][%mdl 8192]} Nxe2 $2 (35... Nxh3+ $19 36. Kg3 Nf4) 36. Rxe2 {[%emt 0:00:00] Weighted Error Value: White=0.40/Black=0.27 (precise)} 0-1

[Event "IX Iberoamericano Championship 2023"]
[Site "Panama City"]
[Date "2023.12.01"]
[Round "7.11"]
[White "Soto Hernandez, Henry"]
[Black "Tapia Ostolaza, Alexei"]
[Result "1-0"]
[ECO "D38"]
[WhiteElo "2490"]
[BlackElo "2166"]
[Annotator "TA"]
[PlyCount "57"]
[EventDate "2023.11.27"]
[EventType "swiss"]
[EventCountry "PAN"]
[SourceTitle "playchess.com"]
[Source "ChessBase"]
[SourceQuality "1"]
[TimeControl "5400+30"]

{[%evp 11,57,31,35,25,57,27,92,84,90,73,200,207,195,174,232,130,137,114,124,113,108,118,164,169,178,181,206,187,185,168,161,68,60,59,168,173,243,228,235,236,236,232,435,446,1348,1181,1143,1117]} 1. d4 {[%emt 0:00:01]} Nf6 {[%emt 0:09:39]} 2. c4 {[%emt 0:00:04]} e6 {[%emt 0:00:09]} 3. Nc3 {[%emt 0:00:04]} Bb4 {[%emt 0:00:25]} 4. Nf3 {[%emt 0:00:22]} O-O {[%emt 0:01:24]} 5. Bg5 {[%emt 0:00:08][%cal Bc1g5,Bg5h4,Bh4g3][%mdl 32]} d5 {[%emt 0:01:56]} 6. e3 {[%emt 0:02:59]} h6 {[%emt 0:08:06]} 7. Bh4 {[%emt 0:00:12] D38: Queen's Gambit Declined: Ragozin Defence (4 Nf3 Bb4).} c6 {[%emt 0:03:43]} 8. Qc2 {[%emt 0:05:08]} g5 {[%emt 0:05:32]} (8... Nbd7 $11) 9. Bg3 $16 {[%emt 0:00:06] White is better.} Ne4 {[%emt 0:00:15]} 10. Nd2 {[%emt 0:03:45] [#]} Qa5 $146 {[%emt 0:06:31]} (10... Bxc3 $16 11. bxc3 Nxg3 12. hxg3 Kg7) ({Predecessor:} 10... f5 11. Ndxe4 dxe4 12. h4 g4 13. Be2 c5 14. a3 Bxc3+ 15. bxc3 Nc6 16. Qd2 e5 {0-1 Samchenko,S (1762)-Pshmahov,O (2075) Samara Polugaevsky Memorial 7th 2017 (2)}) 11. Ndxe4 $18 {[%emt 0:06:19]} dxe4 {[%emt 0:00:09]} 12. h4 {[%emt 0:00:10] Hoping for hxg5.} c5 {[%emt 0:14:24]} (12... g4 $142 13. Be2 (13. Qxe4 $2 {loses.} Bxc3+ 14. Kd1 Bxb2 $19) 13... h5) 13. dxc5 {[%emt 0:10:33]} (13. Qxe4 Bxc3+ 14. Ke2 Bxb2 15. hxg5 cxd4 $17) (13. hxg5 $18 cxd4 14. exd4) 13... g4 {[%emt 0:10:21]} 14. Be2 {[%emt 0:04:08]} (14. Qxe4 $2 {is the wrong capture.} Bxc3+ 15. Ke2 Bxb2 16. Qxg4+ Kh7 $19) 14... f5 {[%emt 0:01:26]} 15. O-O {[%emt 0:00:13]} Bxc3 {[%emt 0:06:46]} 16. bxc3 {[%emt 0:02:52]} Qxc5 {[%emt 0:01:54]} (16... Nc6 $16) 17. Rfd1 {[%emt 0:00:30] Threatens to win with Bd6.} Qa5 {[%emt 0:00:45]} 18. Rab1 {[%emt 0:06:16]} a6 {[%emt 0:01:04] [#] Black is weak on the dark squares} 19. c5 $1 {[%emt 0:17:11][%cal Oe2g4][%mdl 512] And now Bxg4! would win.} Nd7 {[%emt 0:01:40]} 20. Bd6 {[%emt 0:05:27]} Rf7 {[%emt 0:01:25] [#]} 21. Rd4 {[%emt 0:09:17]} (21. Bxg4 $1 $18 {aiming for Bh5.} fxg4 22. Qxe4 Qxa2 23. Qg6+ (23. Qxg4+ Kh7 $16) 23... Rg7 24. Qxh6) 21... Nxc5 $14 {[%emt 0:02:27]} 22. Qd1 {[%emt 0:07:22]} Nd7 {[%emt 0:06:10]} ({Black should try} 22... Kh7 $14) 23. Bc4 $18 {[%emt 0:01:30]} Ne5 {[%emt 0:01:01]} (23... Nf8 {is a better defense.} 24. a4 h5) 24. Bxe5 {[%emt 0:01:25]} Qxe5 {[%emt 0:00:03]} 25. Rd8+ {[%emt 0:00:09]} Kg7 {[%emt 0:00:32]} 26. Rb6 {[%emt 0:02:12]} Qxc3 $2 {[%emt 0:08:08]} (26... Rb8 27. Qd4 Qxd4 28. cxd4 Rf8) 27. Bxe6 {[%emt 0:04:33] White is clearly winning.} Re7 {[%emt 0:04:59]} (27... Bxe6 $142 28. Rxa8 Rd7) 28. Bxc8 {[%emt 0:02:59]} Rxc8 {[%emt 0:00:08]} 29. Qd6 {[%emt 0:00:30][%csl LRe7,LRh6] Weighted Error Value: White=0.17 (very precise) /Black=0.46} 1-0